fUSD/lending_fUSD_20250211
["ID","MTS","AMOUNT","RATE_DAILY","PERIOD"]
[352684908,1739239869607,-500.0,0.0001178,2]
[352684909,1739239869617,-603.01,0.0001178,2]
[352684910,1739239869627,-695.47,0.0001178,2]
[352684911,1739239869636,-500.0,0.0001178,2]
[352684912,1739239869646,-1036.72,0.0001178,2]
[352684913,1739239869655,-599.42,0.0001178,2]
[352684914,1739239869665,-500.0,0.0001178,2]
[352684915,1739239869675,-605.74,0.0001178,2]
[352684916,1739239869683,-754.445923,0.0001178,2]
[352684917,1739239869693,-667.45,0.0001178,2]
[352684918,1739239869703,-557.46,0.0001178,2]
[352684919,1739239869713,-500.0,0.0001178,2]
[352684920,1739239869722,-766.45,0.0001178,2]
[352684921,1739239869731,-500.0,0.0001178,2]
[352684922,1739239869741,-500.0,0.0001178,2]
[352684923,1739239869751,-500.0,0.0001178,2]
[352684924,1739239869760,-595.51,0.0001178,2]
[352684925,1739239869770,-414.62516924,0.0001178,2]
[352684926,1739239869780,-826.07,0.0001178,2]
[352684927,1739239869789,-800.51,0.0001178,2]
[352684928,1739239869799,-500.0,0.0001178,2]
[352684929,1739239869808,-522.87,0.0001178,2]
[352684930,1739239869818,-747.14,0.0001178,2]
[352684931,1739239869827,-500.0,0.0001178,2]
[352684932,1739239869836,-500.0,0.0001178,2]
[352684933,1739239869846,-716.756791,0.0001178,2]
[352684934,1739239869855,-1049.85,0.0001178,2]
[352684935,1739239869865,-781.08,0.0001178,2]
[352684936,1739239869874,-648.97,0.0001178,2]
[352684937,1739239869884,-620.01,0.0001178,2]
[352684938,1739239869894,-532.29,0.0001178,2]
[352684939,1739239869904,-909.7,0.0001178,2]
[352684940,1739239869913,-500.0,0.0001178,2]
[352684941,1739239869923,-540.28,0.0001178,2]
[352684942,1739239869934,-542.34,0.0001178,2]
[352684943,1739239869943,-500.0,0.0001178,2]
[352684944,1739239869953,-500.0,0.0001178,2]
[352684945,1739239869962,-711.46,0.0001178,2]
[352684946,1739239869972,-626.11,0.0001178,2]
[352684947,1739239869982,-500.0,0.0001178,2]
[352684948,1739239869992,-183.740757,0.0001178,2]
[352684949,1739239870001,-909.99,0.0001178,2]
[352684950,1739239870011,-500.0,0.0001178,2]
[352684951,1739239870020,-500.0,0.0001178,2]
[352684952,1739239870030,-500.0,0.0001178,2]
[352684953,1739239870039,-500.0,0.0001178,2]
[352684954,1739239870048,-667.64,0.0001178,2]
[352684955,1739239870058,-668.38,0.0001178,2]
[352684956,1739239870067,-500.0,0.0001178,2]
[352684957,1739239870076,-597.22,0.0001178,2]
[352684958,1739239870086,-841.26,0.0001178,2]
[352684959,1739239870095,-500.0,0.0001178,2]
[352684960,1739239870105,-877.64,0.0001178,2]
[352684961,1739239870115,-539.91,0.0001178,2]
[352684962,1739239870126,-1171.05,0.0001178,2]
[352684963,1739239870137,-39.97715585,0.0001178,2]
[352684964,1739239870266,-492.2689063,0.00011095,2]
[352684965,1739239870276,-165.05135834,0.0001178,2]
[352684966,1739239870295,-500.0,0.00011232,2]
[352684967,1739239870305,-294.97148581,0.0001178,2]
[352684968,1739239870315,-319.08451394,0.0001178,2]
[352684969,1739239870327,-180.91548606,0.0001178,2]
[352684970,1739239870336,-660.76,0.0001178,2]
[352684971,1739239870347,-326.40881194,0.0001178,2]
[352684972,1739239870377,-484.45118806,0.0001178,2]
[352684973,1739239870387,-124.38414265,0.0001178,2]
[352684974,1739239870399,-852.62585735,0.0001178,2]
[352684975,1739239870409,-774.94,0.0001178,2]
[352684976,1739239870419,-500.0,0.0001178,2]
[352684977,1739239870428,-500.0,0.0001178,2]
[352684978,1739239870438,-541.36875724,0.0001178,2]
[352684979,1739239870450,-260.12124276,0.0001178,2]
[352684980,1739239870460,-708.76950156,0.0001178,2]
[352684981,1739240671762,2000.0,0.0002,120]
[352684982,1739240672055,2000.0,0.0002,120]
[352684983,1739240672349,2000.0,0.0002,120]
[352684984,1739240672637,2000.0,0.0002,120]
[352684985,1739240672917,2000.0,0.0002,120]
[352684986,1739240673337,2000.0,0.0002,120]
[352684987,1739240673630,2000.0,0.0002,120]
[352684988,1739240674667,2000.0,0.0002,120]
[352684989,1739240675130,2000.0,0.0002,120]
[352684990,1739240675403,2000.0,0.0002,120]
[352684991,1739240675837,2000.0,0.0002,120]
[352684992,1739240682425,1524.0,0.0002,120]
[352684995,1739240846209,2954.34,0.0002,120]
[352684998,1739240880684,224.69,8.219e-05,2]
[352684999,1739240880708,350.64,8.219e-05,2]
[352685023,1739241031551,-150.0,8.972e-05,2]
[352685024,1739241031563,-13643.976,8.973e-05,2]
[352685025,1739241031573,-150.0,9.187e-05,2]
[352685026,1739241031582,-231.63231478,9.197e-05,2]
[352685027,1739241031592,-1382.18618706,9.803e-05,2]
[352685028,1739241031601,-3091.11293137,9.803e-05,2]
[352685029,1739241031611,-1000.0,9.835e-05,2]
[352685030,1739241031620,-223.91,9.849e-05,2]
[352685031,1739241031630,-150.0,9.869e-05,2]
[352685032,1739241031639,-250.0,9.988e-05,2]
[352685033,1739241031649,-1461.11781566,0.0001,2]
[352685034,1739241031694,-368.49929451,0.0001,2]
[352685035,1739241031705,-786.96,0.0001,2]
[352685036,1739241031720,-2200.49300248,0.0001,2]
[352685037,1739241031826,-51468.93441964,0.0001,2]
[352685038,1739241031835,-13609.76939186,0.0001,2]
[352685039,1739241031844,-309.96,0.00010122,2]
[352685040,1739241031853,-157.49,0.00010137,2]
[352685041,1739241031863,-4219.18,0.0001015,2]
[352685042,1739241031872,-23900.0,0.00010197,2]
[352685043,1739241031881,-362.89989811,0.00010197,2]
[352685044,1739241031890,-49325.28677075,0.00010197,2]
[352685045,1739241031905,-357.07021067,0.00010197,2]
[352685050,1739241037402,-8661.20091581,0.00010197,2]
[352685051,1739241037459,-890.95093003,0.00010197,2]
[352685052,1739241037472,-594.53024969,0.00010197,2]
[352685053,1739241037516,-639.00005176,0.00010197,2]
[352685054,1739241037579,-17815.0,0.00010197,2]
[352685055,1739241037592,-1030.0,0.00010197,2]
[352685056,1739241037630,-289.77501628,0.00010197,2]
[352685057,1739241037707,-1704.75408117,0.00010197,2]
[352685077,1739241039515,-5645.59999995,0.00010197,2]
[352685078,1739241039526,-463.45,0.00010197,2]
[352685079,1739241039573,-1399.79399091,0.00010197,2]
[352685080,1739241039628,-2234.57132828,0.00010197,2]
[352685081,1739241039639,-2011.23905169,0.00010197,2]
[352685082,1739241039648,-506.59,0.00010197,2]
[352685083,1739241039657,-1144.29,0.00010321,2]
[352685084,1739241039666,-575.33,0.00010467,2]
[352685085,1739241039675,-23966.94147808,0.00010818,2]
[352685086,1739241039684,-501.14675768,0.00010958,2]
[352685087,1739241039693,-502.62920571,0.00010958,2]
[352685088,1739241039703,-500.0,0.00010958,2]
[352685089,1739241039712,-500.0,0.00010958,2]
[352685090,1739241039721,-503.16885438,0.00010958,2]
[352685091,1739241039730,-503.46989914,0.00010958,2]
[352685092,1739241039740,-500.6492395,0.00010958,2]
[352685093,1739241039749,-269.51248549,0.00010958,2]
[352685094,1739241039758,-501.28424959,0.00010958,2]
[352685095,1739241039767,-501.00597632,0.00010958,2]
[352685096,1739241039777,-503.57346593,0.00010958,2]
[352685097,1739241039787,-501.39521132,0.00010958,2]
[352685098,1739241039796,-506.04827259,0.00010958,2]
[352685099,1739241039805,-501.08760928,0.00010958,2]
[352685100,1739241039814,-500.90649864,0.00010958,2]
[352685101,1739241039823,-500.38937701,0.00010958,2]
[352685102,1739241039832,-500.89450974,0.00010958,2]
[352685103,1739241039841,-501.98101505,0.00010958,2]
[352685104,1739241039850,-500.36478951,0.00010958,2]
[352685105,1739241039860,-501.59853934,0.00010958,2]
[352685106,1739241039869,-500.0,0.00010958,2]
[352685107,1739241039880,-501.43179191,0.00010958,2]
[352685108,1739241039890,-500.0,0.00010958,2]
[352685109,1739241039899,-500.0,0.00010958,2]
[352685110,1739241039908,-300.88253366,0.00010958,2]
[352685111,1739241039918,-506.12010031,0.00010958,2]
[352685112,1739241039928,-500.0,0.00010958,2]
[352685113,1739241039937,-500.0,0.00010958,2]
[352685114,1739241039945,-500.0,0.00010958,2]
[352685115,1739241039954,-500.0,0.00010958,2]
[352685116,1739241039964,-500.0,0.00010958,2]
[352685118,1739241039973,-503.27498403,0.00010958,2]
[352685119,1739241039981,-501.60219238,0.00010958,2]
[352685120,1739241039990,-500.29506806,0.00010958,2]
[352685121,1739241039999,-281.59504263,0.00010958,2]
[352685122,1739241040008,-617.14167202,0.00010958,2]
[352685123,1739241040017,-300.44938089,0.00010958,2]
[352685124,1739241040026,-500.0,0.00010958,2]
[352685125,1739241040036,-501.12484649,0.00010958,2]
[352685126,1739241040045,-500.78055919,0.00010958,2]
[352685127,1739241040054,-500.89206919,0.00010958,2]
[352685128,1739241040063,-501.54805124,0.00010958,2]
[352685129,1739241040073,-501.37267121,0.00010958,2]
[352685130,1739241040082,-501.36454298,0.00010958,2]
[352685131,1739241040091,-501.10406073,0.00010958,2]
[352685132,1739241040100,-500.92921152,0.00010958,2]
[352685133,1739241040109,-500.0,0.00010958,2]
[352685134,1739241040118,-503.08297193,0.00010958,2]
[352685135,1739241040127,-500.0,0.00010958,2]
[352685136,1739241040136,-500.0,0.00010958,2]
[352685137,1739241040145,-500.0,0.00010958,2]
[352685138,1739241040154,-500.0,0.00010958,2]
[352685139,1739241040163,-505.14152819,0.00010958,2]
[352685140,1739241040175,-502.92335233,0.00010958,2]
[352685141,1739241040184,-504.04957978,0.00010958,2]
[352685142,1739241040193,-502.44511926,0.00010958,2]
[352685143,1739241040203,-503.52954732,0.00010958,2]
[352685144,1739241040211,-505.45764528,0.00010958,2]
[352685145,1739241040220,-500.0,0.00010958,2]
[352685146,1739241040230,-500.0,0.00010958,2]
[352685147,1739241040239,-507.34256615,0.00010958,2]
[352685148,1739241040248,-500.0,0.00010958,2]
[352685149,1739241040258,-500.0,0.00010958,2]
[352685150,1739241040267,-501.89303383,0.00010958,2]
[352685151,1739241040276,-502.77088635,0.00010958,2]
[352685152,1739241040286,-500.0,0.00010958,2]
[352685153,1739241040521,-500.0,0.00010958,2]
[352685154,1739241040534,-502.22226548,0.00010958,2]
[352685155,1739241040545,-500.0,0.00010958,2]
[352685156,1739241040555,-515.06094322,0.00010958,2]
[352685157,1739241040566,-500.0,0.00010958,2]
[352685158,1739241040576,-502.83252638,0.00010958,2]
[352685159,1739241040585,-503.52391608,0.00010958,2]
[352685160,1739241040594,-500.0,0.00010958,2]
[352685161,1739241040604,-623.44,0.00010958,2]
[352685162,1739241040613,-502.74171187,0.00010958,2]
[352685163,1739241040622,-500.0,0.00010958,2]
[352685164,1739241040632,-502.26820765,0.00010958,2]
[352685165,1739241040641,-513.85250382,0.00010958,2]
[352685166,1739241040650,-500.0,0.00010958,2]
[352685167,1739241040659,-500.0,0.00010958,2]
[352685168,1739241040669,-500.0,0.00010958,2]
[352685169,1739241040679,-501.80252221,0.00010958,2]
[352685170,1739241040688,-500.0,0.00010958,2]
[352685171,1739241040697,-503.77882574,0.00010958,2]
[352685172,1739241040706,-500.0,0.00010958,2]
[352685173,1739241040715,-531.15560905,0.00010958,2]
[352685174,1739241040724,-504.43778607,0.00010958,2]
[352685175,1739241040733,-500.0,0.00010958,2]
[352685176,1739241040742,-503.16453963,0.00010958,2]
[352685177,1739241040751,-500.0,0.00010958,2]
[352685178,1739241040760,-500.0,0.00010958,2]
[352685179,1739241040770,-500.0,0.00010958,2]
[352685180,1739241040780,-500.0,0.00010958,2]
[352685181,1739241040789,-500.0,0.00010958,2]
[352685182,1739241040799,-500.0,0.00010958,2]
[352685183,1739241040808,-500.0,0.00010958,2]
[352685184,1739241040818,-500.0,0.00010958,2]
[352685185,1739241040829,-500.0,0.00010958,2]
[352685186,1739241040838,-504.44542287,0.00010958,2]
[352685187,1739241040847,-500.0,0.00010958,2]
[352685188,1739241040856,-500.0,0.00010958,2]
[352685189,1739241040866,-500.0,0.00010958,2]
[352685190,1739241040876,-500.0,0.00010958,2]
[352685191,1739241040886,-500.0,0.00010958,2]
[352685192,1739241040896,-516.53331772,0.00010958,2]
[352685193,1739241040905,-501.71462754,0.00010958,2]
[352685194,1739241040916,-500.0,0.00010958,2]
[352685195,1739241040926,-500.0,0.00010958,2]
[352685196,1739241040936,-500.0,0.00010958,2]
[352685197,1739241040945,-500.0,0.00010958,2]
[352685198,1739241040954,-500.0,0.00010958,2]
[352685199,1739241040964,-503.01440072,0.00010958,2]
[352685200,1739241040973,-500.0,0.00010958,2]
[352685201,1739241040982,-500.0,0.00010958,2]
[352685202,1739241040992,-500.0,0.00010958,2]
[352685203,1739241041001,-500.0,0.00010958,2]
[352685204,1739241041010,-500.0,0.00010958,2]
[352685205,1739241041019,-500.0,0.00010958,2]
[352685206,1739241041028,-500.0,0.00010958,2]
[352685207,1739241041038,-500.0,0.00010958,2]
[352685208,1739241041047,-506.39277366,0.00010958,2]
[352685209,1739241041056,-509.77181677,0.00010958,2]
[352685210,1739241041066,-500.0,0.00010958,2]
[352685211,1739241041075,-500.0,0.00010958,2]
[352685212,1739241041085,-508.5,0.00010958,2]
[352685213,1739241041095,-500.0,0.00010958,2]
[352685214,1739241041104,-500.0,0.00010958,2]
[352685215,1739241041114,-500.0,0.00010958,2]
[352685216,1739241041123,-500.0,0.00010958,2]
[352685217,1739241041133,-500.0,0.00010958,2]
[352685218,1739241041142,-500.0,0.00010958,2]
[352685219,1739241041152,-500.0,0.00010958,2]
[352685220,1739241041162,-505.10729091,0.00010958,2]
[352685221,1739241041180,-500.0,0.00010958,2]
[352685222,1739241041190,-500.0,0.00010958,2]
[352685223,1739241041199,-500.0,0.00010958,2]
[352685224,1739241041208,-500.0,0.00010958,2]
[352685225,1739241041218,-500.0,0.00010958,2]
[352685226,1739241041227,-502.14893456,0.00010958,2]
[352685227,1739241041236,-500.0,0.00010958,2]
[352685228,1739241041246,-500.0,0.00010958,2]
[352685229,1739241041255,-500.0,0.00010958,2]
[352685230,1739241041264,-576.81077972,0.00010958,2]
[352685231,1739241041274,-500.0,0.00010958,2]
[352685232,1739241041283,-500.0,0.00010958,2]
[352685233,1739241041292,-574.03,0.00010958,2]
[352685234,1739241041302,-500.0,0.00010958,2]
[352685235,1739241041311,-500.0,0.00010958,2]
[352685236,1739241041321,-500.0,0.00010958,2]
[352685237,1739241041330,-500.0,0.00010958,2]
[352685238,1739241041339,-500.0,0.00010958,2]
[352685239,1739241041349,-500.0,0.00010958,2]
[352685240,1739241041358,-501.07089367,0.00010958,2]
[352685241,1739241041367,-500.0,0.00010958,2]
[352685242,1739241041376,-500.0,0.00010958,2]
[352685243,1739241041386,-500.0,0.00010958,2]
[352685244,1739241041395,-500.0,0.00010958,2]
[352685245,1739241041404,-501.87129535,0.00010958,2]
[352685246,1739241041413,-502.69020189,0.00010958,2]
[352685247,1739241041422,-500.0,0.00010958,2]
[352685248,1739241041431,-500.0,0.00010958,2]
[352685249,1739241041440,-501.89468334,0.00010958,2]
[352685250,1739241041450,-500.0,0.00010958,2]
[352685251,1739241041459,-500.0,0.00010958,2]
[352685252,1739241041473,-505.46587563,0.00010958,2]
[352685253,1739241041482,-501.55919701,0.00010958,2]
[352685254,1739241041491,-500.0,0.00010958,2]
[352685255,1739241041500,-891.54,0.00010958,2]
[352685256,1739241041510,-501.78524169,0.00010958,2]
[352685257,1739241041519,-500.0,0.00010958,2]
[352685258,1739241041528,-504.84613594,0.00010958,2]
[352685259,1739241041538,-500.0,0.00010958,2]
[352685260,1739241041549,-527.12,0.00010958,2]
[352685261,1739241041559,-1048.14,0.00010958,2]
[352685262,1739241041569,-500.0,0.00010958,2]
[352685263,1739241041578,-500.0,0.00010958,2]
[352685264,1739241041588,-676.06,0.00010958,2]
[352685265,1739241041597,-500.0,0.00010958,2]
[352685266,1739241041606,-500.0,0.00010958,2]
[352685267,1739241041615,-500.0,0.00010958,2]
[352685268,1739241041623,-501.47508916,0.00010958,2]
[352685269,1739241041633,-500.0,0.00010958,2]
[352685270,1739241041642,-500.0,0.00010958,2]
[352685271,1739241041651,-190.35012948,0.00010958,2]
[352685272,1739241041670,-311.23308525,0.00010958,2]
[352685273,1739241041680,-129.33899165,0.00010958,2]
[352685274,1739241041692,-370.66100835,0.00010958,2]
[352685275,1739241041701,-500.0,0.00010958,2]
[352685276,1739241041711,-171.93255637,0.00010958,2]
[352685277,1739241041722,-335.48520072,0.00010958,2]
[352685278,1739241041731,-199.53924504,0.00010958,2]
[352685279,1739241041743,-301.58191839,0.00010958,2]
[352685280,1739241041753,-500.0,0.00010958,2]
[352685281,1739241041762,-406.62097381,0.00010958,2]
[352685282,1739241041773,-93.37902619,0.00010958,2]
[352685283,1739241041782,-500.0,0.00010958,2]
[352685284,1739241041791,-540.01662394,0.00010958,2]
[352685285,1739241041801,-500.8841968,0.00010958,2]
[352685286,1739241041810,-500.0,0.00010958,2]
[352685287,1739241041820,-653.75,0.00010958,2]
[352685288,1739241041830,-68.90387307,0.00010958,2]
[352685289,1739241041841,-431.09612693,0.00010958,2]
[352685290,1739241041851,-643.96,0.00010958,2]
[352685291,1739241041860,-500.0,0.00010958,2]
[352685292,1739241041869,-500.0,0.00010958,2]
[352685293,1739241041878,-500.0,0.00010958,2]
[352685294,1739241041887,-500.0,0.00010958,2]
[352685295,1739241041897,-500.0,0.00010958,2]
[352685296,1739241041906,-500.0,0.00010958,2]
[352685297,1739241041915,-500.0,0.00010958,2]
[352685298,1739241041924,-561.47,0.00010958,2]
[352685299,1739241041934,-177.66302995,0.00010958,2]
[352685300,1739241041943,-500.0,0.00010958,2]
[352685301,1739241041952,-500.0,0.00010958,2]
[352685302,1739241041961,-500.0,0.00010958,2]
[352685303,1739241041970,-223.31769605,0.00010958,2]
[352685304,1739241041981,-516.70230395,0.00010958,2]
[352685305,1739241041990,-511.9340494,0.00010958,2]
[352685306,1739241042000,-528.37,0.00010958,2]
[352685307,1739241042009,-507.88499083,0.00010958,2]
[352685308,1739241042018,-500.0,0.00010958,2]
[352685309,1739241042027,-500.0,0.00010958,2]
[352685310,1739241042036,-500.0,0.00010958,2]
[352685311,1739241042045,-567.73,0.00010958,2]
[352685312,1739241042055,-502.17158007,0.00010958,2]
[352685313,1739241042065,-67.32957575,0.00010958,2]
[352685314,1739241042076,-438.3089421,0.00010958,2]
[352685315,1739241042086,-500.0,0.00010958,2]
[352685316,1739241042096,-500.0,0.00010958,2]
[352685317,1739241042105,-2557.98,0.00010958,2]
[352685318,1739241042114,-736.49,0.00010958,2]
[352685319,1739241042123,-500.0,0.00010958,2]
[352685320,1739241042132,-500.0,0.00010958,2]
[352685321,1739241042141,-637.73,0.00010958,2]
[352685322,1739241042151,-513.29019085,0.00010958,2]
[352685323,1739241042160,-560.6,0.00010958,2]
[352685324,1739241042169,-500.0,0.00010958,2]
[352685325,1739241042178,-500.0,0.00010958,2]
[352685326,1739241042187,-591.31,0.00010958,2]
[352685327,1739241042196,-500.0,0.00010958,2]
[352685328,1739241042205,-500.0,0.00010958,2]
[352685329,1739241042214,-500.0,0.00010958,2]
[352685330,1739241042223,-500.0,0.00010958,2]
[352685331,1739241042232,-500.0,0.00010958,2]
[352685332,1739241042241,-500.0,0.00010958,2]
[352685333,1739241042250,-500.0,0.00010958,2]
[352685334,1739241042260,-500.0,0.00010958,2]
[352685335,1739241042269,-500.0,0.00010958,2]
[352685336,1739241042278,-500.0,0.00010958,2]
[352685338,1739241042287,-510.47,0.00010958,2]
[352685340,1739241042297,-500.0,0.00010958,2]
[352685341,1739241042306,-500.0,0.00010958,2]
[352685342,1739241042316,-507.16,0.00010958,2]
[352685343,1739241042325,-972.76,0.00010958,2]
[352685344,1739241042334,-500.0,0.00010958,2]
[352685345,1739241042343,-500.0,0.00010958,2]
[352685346,1739241042353,-503.72491557,0.00010958,2]
[352685347,1739241042362,-502.81193505,0.00010958,2]
[352685348,1739241042372,-605.41,0.00010958,2]
[352685349,1739241042381,-500.0,0.00010958,2]
[352685350,1739241042390,-241.00348368,0.00010958,2]
[352685351,1739241042399,-500.0,0.00010958,2]
[352685352,1739241042408,-500.0,0.00010958,2]
[352685353,1739241042417,-330.5147718,0.00010958,2]
[352685354,1739241042426,-500.0,0.00010958,2]
[352685355,1739241042435,-500.0,0.00010958,2]
[352685356,1739241042444,-502.15878582,0.00010958,2]
[352685357,1739241042453,-817.67,0.00010958,2]
[352685358,1739241042464,-500.0,0.00010958,2]
[352685359,1739241042475,-500.0,0.00010958,2]
[352685360,1739241042484,-512.4,0.00010958,2]
[352685361,1739241042493,-500.0,0.00010958,2]
[352685362,1739241042502,-500.0,0.00010958,2]
[352685363,1739241042511,-556.11,0.00010958,2]
[352685364,1739241042520,-500.0,0.00010958,2]
[352685365,1739241042529,-500.0,0.00010958,2]
[352685366,1739241042539,-522.18,0.00010958,2]
[352685367,1739241042549,-500.0,0.00010958,2]
[352685368,1739241042559,-636.828149,0.00010958,2]
[352685369,1739241042570,-500.0,0.00010958,2]
[352685370,1739241042579,-507.56930912,0.00010958,2]
[352685371,1739241042588,-500.0,0.00010958,2]
[352685372,1739241042598,-500.0,0.00010958,2]
[352685373,1739241042607,-699.83,0.00010958,2]
[352685374,1739241042616,-500.0,0.00010958,2]
[352685375,1739241042626,-500.0,0.00010958,2]
[352685376,1739241042635,-658.06,0.00010958,2]
[352685378,1739241042645,-500.0,0.00010958,2]
[352685380,1739241042654,-612.56,0.00010958,2]
[352685382,1739241042663,-500.0,0.00010958,2]
[352685384,1739241042672,-500.0,0.00010958,2]
[352685386,1739241042681,-500.0,0.00010958,2]
[352685388,1739241042690,-500.0,0.00010958,2]
[352685389,1739241042699,-826.98,0.00010958,2]
[352685391,1739241042708,-500.0,0.00010958,2]
[352685393,1739241042717,-671.21,0.00010958,2]
[352685395,1739241042727,-207.37597513,0.00010958,2]
[352685397,1739241042736,-500.0,0.00010958,2]
[352685399,1739241042745,-500.0,0.00010958,2]
[352685401,1739241042754,-588.109069,0.00010958,2]
[352685403,1739241042763,-506.0,0.00010958,2]
[352685405,1739241042772,-515.77144764,0.00010958,2]
[352685407,1739241042781,-500.0,0.00010958,2]
[352685409,1739241042790,-725.54,0.00010958,2]
[352685411,1739241042799,-500.0,0.00010958,2]
[352685413,1739241042808,-500.0,0.00010958,2]
[352685415,1739241042818,-510.67957736,0.00010958,2]
[352685416,1739241042828,-500.0,0.00010958,2]
[352685418,1739241042838,-587.29,0.00010958,2]
[352685420,1739241042847,-493.0,0.00010958,2]
[352685422,1739241042856,-500.0,0.00010958,2]
[352685424,1739241042866,-500.0,0.00010958,2]
[352685426,1739241042875,-500.0,0.00010958,2]
[352685428,1739241042884,-500.0,0.00010958,2]
[352685430,1739241042893,-498.27363848,0.00010958,2]
[352685432,1739241042907,-229.63636152,0.00010958,2]
[352685434,1739241042915,-500.0,0.00010958,2]
[352685436,1739241042924,-500.0,0.00010958,2]
[352685438,1739241042934,-500.0,0.00010958,2]
[352685440,1739241042943,-679.74,0.00010958,2]
[352685442,1739241042952,-500.0,0.00010958,2]
[352685444,1739241042961,-500.0,0.00010958,2]
[352685446,1739241042970,-124.28354022,0.00010958,2]
[352685449,1739241042985,-260.51,0.00010958,2]
[352685451,1739241042997,-115.20645978,0.00010958,2]
[352685453,1739241043006,-500.0,0.00010958,2]
[352685455,1739241043015,-858.81,0.00010958,2]
[352685457,1739241043024,-500.0,0.00010958,2]
[352685459,1739241043033,-64.58354022,0.00010958,2]
[352685461,1739241043044,-463.91441541,0.00010958,2]
[352685464,1739241043072,-176.49204437,0.00010958,2]
[352685466,1739241043081,-500.0,0.00010958,2]
[352685468,1739241043091,-657.7,0.00010958,2]
[352685470,1739241043100,-912.83,0.00010958,2]
[352685472,1739241043109,-764.11,0.00010958,2]
[352685474,1739241043119,-500.0,0.00010958,2]
[352685475,1739241043128,-500.0,0.00010958,2]
[352685476,1739241043137,-530.54,0.00010958,2]
[352685477,1739241043147,-233.87795563,0.00010958,2]
[352685478,1739241043581,-545.76204437,0.00010958,2]
[352685479,1739241043591,-505.00262559,0.00010958,2]
[352685480,1739241043661,-270.37737441,0.00010958,2]
[352685481,1739241043671,-405.04758059,0.00010958,2]
[352685482,1739241043682,-189.62241941,0.00010958,2]
[352685483,1739241043691,-586.18,0.00010958,2]
[352685484,1739241043700,-706.36,0.00010958,2]
[352685485,1739241043709,-500.0,0.00010958,2]
[352685486,1739241043718,-662.37,0.00010958,2]
[352685487,1739241043727,-500.0,0.00010958,2]
[352685488,1739241043737,-675.5,0.00010958,2]
[352685489,1739241043747,-630.22,0.00010958,2]
[352685490,1739241043756,-500.0,0.00010958,2]
[352685491,1739241043765,-511.32,0.00010958,2]
[352685492,1739241043774,-599.08,0.00010958,2]
[352685493,1739241043783,-500.0,0.00010958,2]
[352685494,1739241043792,-450.0,0.00010958,2]
[352685495,1739241043802,-500.0,0.00010958,2]
[352685496,1739241043810,-585.6,0.00010958,2]
[352685497,1739241043820,-500.0,0.00010958,2]
[352685498,1739241043829,-652.54,0.00010958,2]
[352685499,1739241043839,-500.0,0.00010958,2]
[352685500,1739241043848,-500.0,0.00010958,2]
[352685501,1739241043857,-859.23,0.00010958,2]
[352685502,1739241043866,-500.0,0.00010958,2]
[352685503,1739241043876,-785.43,0.00010958,2]
[352685504,1739241043885,-500.0,0.00010958,2]
[352685505,1739241043894,-1148.58,0.00010958,2]
[352685506,1739241043903,-500.0,0.00010958,2]
[352685507,1739241043913,-500.0,0.00010958,2]
[352685508,1739241043923,-500.0,0.00010958,2]
[352685509,1739241043933,-1857.1,0.00010958,2]